[Event "FIDE WCCC U12 2018"]
[Site "Santiago de Compostela"]
[Date "2018.11.15"]
[Round "11"]
[White "Tashev, Aleksandar"]
[Black "Yoon, Jacob D"]
[Result "1/2-1/2"]
[ECO "A06"]
[WhiteElo "2211"]
[BlackElo "2048"]
[Annotator "NA"]
[PlyCount "70"]
[EventDate "2018.11.04"]
[EventType "swiss"]
[EventCountry "ESP"]
[SourceTitle "playchess.com"]
[Source "ChessBase"]
[SourceQuality "1"]
[TimeControl "40/5400+30:1800+30"]

{[%evp 8,70,14,9,16,13,13,8,2,-7,-8,0,4,-10,21,18,32767,32767,32767,32767,32767,32767,32767,-15,16,32767,32767,-19,32767,-18,32767,32767,32767,0,0,0,0,0,12,0,7,13,16,0,18,18,17,12,29,30,32,0,0,0,0,32767,-6,0,0,32767,0,32767,0,32767,0]} 1. Nf3 {[%emt 0:00:00]} d5 {[%emt 0:00:00]} 2. g3 {[%emt 0:00:00]} Bg4 {[%emt 0:00:00]} 3. Bg2 {[%emt 0:00:07]} c6 {[%emt 0:00:00]} 4. O-O {[%emt 0:01:11]} e6 {[%emt 0:00:00]} 5. d3 {[%emt 0:01:48]} Nf6 {[%emt 0:00:36]} 6. Nbd2 {[%emt 0:02:26]} Be7 {[%emt 0:02:01]} 7. c4 {[%emt 0:01:39]} Nbd7 {[%emt 0:01:09]} 8. b3 {[%emt 0:02:53]} O-O {[%emt 0:03:53]} 9. Bb2 {[%emt 0:00:56]} a5 {[%emt 0:01:29]} 10. a3 {[%emt 0:01:19]} Ne8 {[%emt 0:18:08]} 11. Qc2 {[%emt 0:03:25] LiveBook: 3 Games} Bf6 {[%emt 0:03:13]} 12. Rfe1 {[%emt 0:09:29]} Bxb2 {[%emt 0:04:20]} 13. Qxb2 {[%emt 0:00:06]} Qf6 {[%emt 0:00:17]} 14. Qc2 {[%emt 0:02:30]} e5 {[%emt 0:04:44]} 15. h3 {[%emt 0:03:14]} Bxf3 {[%emt 0:03:52]} 16. Nxf3 {[%emt 0:02:41]} Nd6 {[%emt 0:02:17]} 17. Nd2 {[%emt 0:04:35]} Qe6 {[%emt 0:01:09]} 18. e4 {[%emt 0:01:55]} dxc4 {[%emt 0:11:30]} 19. dxc4 {[%emt 0:00:15]} Nc5 {[%emt 0:00:32]} 20. b4 {[%emt 0:03:31]} Na6 {[%emt 0:03:10]} 21. Qc3 {[%emt 0:01:20]} axb4 {[%emt 0:00:50]} 22. axb4 {[%emt 0:00:05]} Nc7 {[%emt 0:02:33]} 23. Kh2 {[%emt 0:06:14]} f6 {[%emt 0:01:39]} 24. Bf1 {[%emt 0:02:23]} Kh8 {[%emt 0:06:27]} 25. Qe3 {[%emt 0:01:40]} Qe7 {[%emt 0:03:00]} 26. Red1 {[%emt 0:04:45]} Rfd8 {[%emt 0:08:37]} 27. Nb3 {[%emt 0:03:43]} Ne6 {[%emt 0:01:20]} 28. c5 {[%emt 0:11:06]} Nf7 {[%emt 0:00:12]} 29. Bc4 {[%emt 0:01:44]} Rxa1 {[%emt 0:02:23]} 30. Rxa1 {[%emt 0:03:31]} Nd4 {[%emt 0:00:04]} 31. Rd1 {[%emt 0:06:36]} Ng5 {[%emt 0:01:35]} 32. Kg2 {[%emt 0:02:00]} Ngf3 {[%emt 0:02:43]} 33. h4 {[%emt 0:04:26]} Nxb3 {[%emt 0:01:53]} 34. Bxb3 {[%emt 0:03:23]} Rxd1 {[%emt 0:00:09]} 35. Bxd1 {[%emt 0:00:10]} Nd4 $11 {[%emt 0:00:12]} 1/2-1/2

[Event "FIDE WCCC U12 2018"]
[Site "Santiago de Compostela"]
[Date "2018.11.15"]
[Round "11"]
[White "Shen, Shiyan"]
[Black "Chasin, Nico"]
[Result "0-1"]
[ECO "C03"]
[WhiteElo "2187"]
[BlackElo "2189"]
[Annotator "NA"]
[PlyCount "32"]
[EventDate "2018.11.04"]
[EventType "swiss"]
[EventCountry "ESP"]
[SourceTitle "playchess.com"]
[Source "ChessBase"]
[SourceQuality "1"]
[TimeControl "40/5400+30:1800+30"]

1. e4 e6 2. d4 d5 3. Nd2 Be7 4. e5 c5 5. c3 cxd4 6. cxd4 Qb6 7. Ndf3 Bd7 8. Bd3 Bb5 9. Ne2 Bxd3 10. Qxd3 Qa6 11. Qxa6 Nxa6 12. a3 Bd8 13. Nc3 Nc7 14. O-O Ne7 15. Be3 Nc6 16. Nd2 f5 0-1

[Event "FIDE WCCC U12 2018"]
[Site "Santiago de Compostela"]
[Date "2018.11.15"]
[Round "11"]
[White "Zhou, Liran"]
[Black "Rakhmatullaev, Almas"]
[Result "1-0"]
[ECO "C77"]
[WhiteElo "2186"]
[BlackElo "1921"]
[Annotator "NA"]
[PlyCount "63"]
[EventDate "2018.11.04"]
[EventType "swiss"]
[EventCountry "ESP"]
[SourceTitle "playchess.com"]
[Source "ChessBase"]
[SourceQuality "1"]
[TimeControl "40/5400+30:1800+30"]

{[%evp 16,60,18,6,19,18,32767,32767,32767,32767,32767,32767,32767,32767,32767,32767,40,32767,83,32767,56,39,113,32767,106,81,32767,32767,243,206,32767,79,122,32767,226,216,414,309,612,315,1081,32767,32767,669,620,672,641]} 1. e4 {[%emt 0:00:00]} e5 {[%emt 0:00:00]} 2. Nf3 {[%emt 0:00:00]} Nc6 {[%emt 0:00:02]} 3. Bb5 {[%emt 0:00:00]} a6 {[%emt 0:00:13]} 4. Ba4 {[%emt 0:00:00]} Nf6 {[%emt 0:00:10]} 5. Qe2 {[%emt 0:00:00]} b5 {[%emt 0:01:23]} 6. Bb3 {[%emt 0:00:00]} Bc5 {[%emt 0:00:07]} 7. d3 {[%emt 0:00:08]} d6 {[%emt 0:02:39]} 8. c3 {[%emt 0:00:16]} Be6 {[%emt 0:06:44] LiveBook: 6 Games C77: Ruy Lopez: 3...a6 4 Ba4 Nf6, unusual lines} (8... h6 9. O-O O-O 10. Be3 Bxe3 11. Qxe3 Na5 12. Bc2 c5 13. Nbd2 Nc6 14. a4 Rb8 15. axb5 axb5 16. Rfd1 Qb6 17. Nf1 d5 18. exd5 Nxd5 19. Qe4 Nf6 20. Qe2 Re8 21. Ng3 Be6 22. Re1 Bd5 23. Nd2 {½-½ (23) Tiviakov,S (2637)-Shirov,A (2749) Hoogeveen 2010}) 9. O-O {[%emt 0:05:41]} h6 {[%emt 0:12:49]} 10. Be3 {[%emt 0:03:13]} O-O {[%emt 0:12:57]} 11. Nbd2 $146 {[%emt 0:02:09]} ({Predecessor:} 11. Bc2 Qd7 12. Nbd2 Bg4 13. Rfe1 Bxe3 14. fxe3 d5 15. exd5 Nxd5 16. Qf2 f5 17. Qh4 Qd6 {1-0 (36) Prasanna Raghuram,R (2310)-Szalay,K (2128) Kemer 2009}) 11... Bxe3 {[%emt 0:00:47]} 12. fxe3 {[%emt 0:00:18]} Bxb3 {[%emt 0:03:35]} 13. axb3 {[%emt 0:00:27]} d5 {[%emt 0:02:16]} 14. exd5 {[%emt 0:01:35]} Nxd5 {[%emt 0:00:50]} 15. g3 {[%emt 0:06:18]} Qd7 {[%emt 0:04:01]} 16. b4 {[%emt 0:08:56]} Nb6 {[%emt 0:11:47]} 17. Ne4 {[%emt 0:07:43]} Na4 {[%emt 0:05:51]} 18. b3 {[%emt 0:02:26]} f5 {[%emt 0:00:45]} 19. bxa4 {[%emt 0:01:28]} fxe4 {[%emt 0:01:09]} 20. dxe4 {[%emt 0:00:49]} bxa4 {[%emt 0:06:45]} 21. Rxa4 {[%emt 0:06:06]} Qg4 {[%emt 0:09:20]} (21... Qe6 $142 22. Kg2 (22. Rxa6 Nd4 $16) 22... a5) 22. b5 {[%emt 0:04:04]} ({Worse is} 22. Rxa6 Rxa6 23. Qc4+ (23. Qxa6 Rxf3 24. Qa8+ Kf7 $11) 23... Kh8 $11) ({Resist} 22. Qc4+ Kh7 $16) 22... Ne7 {[%emt 0:02:23]} 23. Qa2+ {[%emt 0:18:20]} ({Don't take} 23. Rxa6 $6 Qxe4 24. Nd2 Rxf1+ 25. Qxf1 Qxe3+ 26. Qf2 Qxf2+ 27. Kxf2 Rd8 $16) (23. bxa6 $18 {and White stays clearly on top.} Kh8 24. Rf2) 23... Kh7 {[%emt 0:00:41]} 24. Kg2 {[%emt 0:00:30]} Ng6 {[%emt 0:07:39]} (24... a5 $16 {was necessary.} 25. h3 (25. Nxe5 Qh5 $14) 25... Qg6) 25. h3 {[%emt 0:00:39]} ({Stronger than} 25. Rxa6 Rxa6 26. bxa6 Rxf3 $11) 25... Qh5 $2 {[%emt 0:00:35]} (25... Qd7 {was necessary.} 26. bxa6 Qd3) 26. bxa6 {[%emt 0:03:13]} Rf6 $2 {[%emt 0:00:27]} (26... Ne7 27. Qc4 Qe8) 27. a7 {[%emt 0:00:37]} Raf8 $2 {[%emt 0:04:55]} (27... Ne7 28. Rf2 Nc8) 28. a8=Q {[%emt 0:01:58]} Rxf3 {[%emt 0:00:10] [#]} 29. Qxf8 $18 {[%emt 0:00:25]} Rxf8 {[%emt 0:00:14]} 30. Rxf8 {[%emt 0:00:14]} Nxf8 {[%emt 0:00:06]} 31. Ra8 {[%emt 0:01:32]} Ne6 {[%emt 0:00:36]} 32. Qf2 {[%emt 0:00:21]} 1-0

[Event "FIDE WCCC U12 2018"]
[Site "Santiago de Compostela"]
[Date "2018.11.15"]
[Round "11"]
[White "Aizenberg, Benny"]
[Black "Zhakshylykov, Erzhan"]
[Result "1-0"]
[ECO "B90"]
[WhiteElo "2164"]
[BlackElo "1526"]
[Annotator "ChessBase"]
[PlyCount "63"]
[EventDate "2018.11.04"]
[EventType "swiss"]
[EventCountry "ESP"]
[SourceTitle "playchess.com"]
[Source "ChessBase"]
[SourceQuality "1"]
[TimeControl "40/5400+30:1800+30"]

1. e4 {[%emt 0:00:00]} c5 {[%emt 0:00:00]} 2. Nf3 {[%emt 0:00:00]} d6 {[%emt 0:00:01]} 3. d4 {[%emt 0:00:00]} cxd4 {[%emt 0:00:13]} 4. Nxd4 {[%emt 0:00:00]} Nf6 {[%emt 0:00:13]} 5. Nc3 {[%emt 0:00:00]} a6 {[%emt 0:00:13]} 6. h3 {[%emt 0:00:00]} e5 {[%emt 0:00:42]} 7. Nde2 {[%emt 0:00:05]} Be7 {[%emt 0:00:16]} 8. g4 {[%emt 0:00:05]} Be6 {[%emt 0:00:53]} 9. Bg2 {[%emt 0:00:10]} Nbd7 {[%emt 0:01:05]} 10. O-O {[%emt 0:00:15]} O-O {[%emt 0:01:44]} 11. Be3 {[%emt 0:06:30]} Rc8 {[%emt 0:01:59]} 12. Nd5 {[%emt 0:03:16]} Bxd5 {[%emt 0:00:51]} 13. exd5 {[%emt 0:00:15]} b5 {[%emt 0:11:15]} 14. Ng3 {[%emt 0:10:17]} Nc5 {[%emt 0:02:23]} 15. b3 {[%emt 0:01:03]} Re8 {[%emt 0:03:45]} 16. f4 {[%emt 0:21:37]} exf4 {[%emt 0:01:40]} 17. Bxf4 {[%emt 0:00:11]} Nfd7 {[%emt 0:07:29]} 18. Nf5 {[%emt 0:13:29]} Qb6 {[%emt 0:02:03]} 19. Kh1 {[%emt 0:00:07]} Bf8 {[%emt 0:01:20]} 20. Qf3 {[%emt 0:03:41]} Ne5 {[%emt 0:14:25]} 21. Bxe5 {[%emt 0:00:06]} Rxe5 {[%emt 0:01:06]} 22. Rae1 {[%emt 0:00:07]} f6 {[%emt 0:03:55]} 23. g5 {[%emt 0:09:29]} Qd8 {[%emt 0:05:12]} 24. gxf6 {[%emt 0:01:09]} Qxf6 {[%emt 0:01:40]} 25. Nh6+ {[%emt 0:01:21]} Kh8 {[%emt 0:01:33]} 26. Nf7+ {[%emt 0:00:04]} Kg8 {[%emt 0:00:19]} 27. Nxe5 {[%emt 0:00:05]} dxe5 {[%emt 0:03:26]} 28. Qxf6 {[%emt 0:00:30]} gxf6 {[%emt 0:00:07]} 29. Rxf6 {[%emt 0:00:05]} Re8 {[%emt 0:00:42]} 30. Rc6 {[%emt 0:01:37]} e4 {[%emt 0:01:44]} 31. d6 {[%emt 0:00:04]} Re5 {[%emt 0:00:16]} 32. b4 {[%emt 0:00:31]} 1-0

[Event "FIDE WCCC U12 2018"]
[Site "Santiago de Compostela"]
[Date "2018.11.15"]
[Round "11"]
[White "Chyzy, Jakub"]
[Black "Boris, Peter"]
[Result "1-0"]
[ECO "C47"]
[WhiteElo "2136"]
[BlackElo "1914"]
[Annotator "NA"]
[PlyCount "89"]
[EventDate "2018.11.04"]
[EventType "swiss"]
[EventCountry "ESP"]
[SourceTitle "playchess.com"]
[Source "ChessBase"]
[SourceQuality "1"]
[TimeControl "40/5400+30:1800+30"]

{[%evp 8,89,6,0,-6,-2,32767,32767,32767,32767,32767,32767,32767,32767,32767,-11,32767,32767,-3,32767,0,0,-1,0,8,0,32767,32767,32767,32767,32767,32767,32767,32767,15,13,45,32767,32767,35,32767,32767,56,35,32767,32767,32767,104,139,158,161,113,138,46,32,25,110,102,32767,32767,128,85,118,32767,32767,32767,32767,32767,32767,32767,549,1120,32767,32767,704,32767,32767,32767,4933,29976,32767,32767,32767,29977]} 1. e4 {[%emt 0:00:00]} e5 {[%emt 0:00:00]} 2. Nf3 {[%emt 0:00:00]} Nc6 {[%emt 0:00:00]} 3. Nc3 {[%emt 0:00:00]} Nf6 {[%emt 0:00:00]} 4. d4 {[%emt 0:00:00]} exd4 {[%emt 0:00:02]} 5. Nxd4 {[%emt 0:00:00]} Bb4 {[%emt 0:00:18]} 6. Nxc6 {[%emt 0:00:00]} bxc6 {[%emt 0:00:06]} 7. Bd3 {[%emt 0:00:00]} d5 {[%emt 0:00:15]} 8. exd5 {[%emt 0:00:05]} cxd5 {[%emt 0:00:19]} 9. O-O {[%emt 0:00:09]} O-O {[%emt 0:00:07]} 10. Bg5 {[%emt 0:00:05]} c6 {[%emt 0:01:33]} 11. Qf3 {[%emt 0:00:11]} ({Of course not} 11. Bxf6 Qxf6 12. Ne2 Bd6 $17) 11... Bd6 {[%emt 0:02:15]} 12. h3 {[%emt 0:01:02]} Rb8 {[%emt 0:01:55]} 13. Rab1 {[%emt 0:00:50]} Be6 {[%emt 0:04:25] LiveBook: 3 Games C47: Scotch Four Knights and Four Knights with 4 g3} (13... h6 14. Bf4 Be6 15. Ne2 c5 16. c3 Re8 17. Rfd1 Rb6 18. Bc2 Bxf4 19. Nxf4 Qb8 20. b3 a5 21. Re1 {1-0 (33) Dubov,D (2694)-Matlakov,M (2709) Moscow 2018}) 14. b3 {[%emt 0:06:37]} Re8 {[%emt 0:01:56]} 15. Ne2 {[%emt 0:03:27]} c5 {[%emt 0:04:21]} 16. Ng3 {[%emt 0:04:35]} h6 {[%emt 0:12:28]} 17. Bxf6 {[%emt 0:05:32]} Qxf6 {[%emt 0:00:18]} 18. Qxf6 {[%emt 0:00:07]} gxf6 {[%emt 0:00:04] [#]} 19. f4 $146 {[%emt 0:05:10]} ({You set blue moves yourself with the critical opening position annotation.:} 19. Nf5 Bxf5 20. Bxf5 Bc7 21. Rbd1 {½-½ (52) Hasangatin,R (2512)-Predke,A (2535) Sochi 2016}) 19... c4 {[%emt 0:06:35]} 20. Be2 {[%emt 0:03:02]} cxb3 {[%emt 0:01:58]} (20... f5 $15) 21. axb3 {[%emt 0:01:16]} Bd7 {[%emt 0:08:36]} 22. Rbd1 {[%emt 0:11:51]} Bc6 {[%emt 0:08:14]} 23. Bg4 {[%emt 0:10:46]} Bc5+ {[%emt 0:06:24]} 24. Kh2 {[%emt 0:01:02]} Bb5 {[%emt 0:01:57]} 25. Rfe1 {[%emt 0:09:30]} Rxe1 {[%emt 0:01:40]} 26. Rxe1 {[%emt 0:00:04]} Bf2 {[%emt 0:08:58]} 27. Rd1 {[%emt 0:01:44]} Bxg3+ {[%emt 0:05:45]} 28. Kxg3 {[%emt 0:00:04]} Bc6 {[%emt 0:01:22]} 29. Bf3 {[%emt 0:00:54]} Rb5 {[%emt 0:00:49]} 30. c4 {[%emt 0:03:38]} ({White should try} 30. Ra1 $16) 30... Rxb3 {[%emt 0:00:37]} 31. cxd5 {[%emt 0:00:08]} Bd7 {[%emt 0:00:42]} ({Black should play} 31... Bb5 $1 $14) 32. Ra1 {[%emt 0:01:06]} Rb7 {[%emt 0:00:32]} 33. Kf2 {[%emt 0:05:15]} Kf8 {[%emt 0:05:16]} 34. Ra6 {[%emt 0:00:31]} Kg7 {[%emt 0:00:30]} 35. Ke3 {[%emt 0:04:08]} Bb5 {[%emt 0:01:14]} 36. Ra2 {[%emt 0:11:36]} a6 {[%emt 0:01:00]} 37. Kd4 {[%emt 0:00:48]} Rc7 {[%emt 0:00:54]} 38. Be2 {[%emt 0:00:17]} Bxe2 $2 {[%emt 0:01:55]} (38... Rc1 {was called for.} 39. Rb2 Bxe2 40. Rxe2 Kf8) 39. Rxe2 {[%emt 0:00:39]} Kf8 {[%emt 0:00:53]} 40. d6 {[%emt 0:00:00]} Rc1 {[%emt 0:00:00]} 41. Kd5 {[%emt 0:00:42]} a5 {[%emt 0:00:55]} 42. d7 {[%emt 0:00:26]} Rd1+ {[%emt 0:00:05]} 43. Kc6 {[%emt 0:00:04]} Rc1+ {[%emt 0:00:19]} 44. Kb7 {[%emt 0:00:11]} Rb1+ {[%emt 0:00:05]} 45. Ka7 {[%emt 0:00:06]} 1-0

[Event "FIDE WCCC U12 2018"]
[Site "Santiago de Compostela"]
[Date "2018.11.15"]
[Round "11"]
[White "Nguyen, Quoc Hy"]
[Black "Hommer, Jeremy"]
[Result "1-0"]
[ECO "A10"]
[WhiteElo "2117"]
[BlackElo "1987"]
[Annotator "NA"]
[PlyCount "91"]
[EventDate "2018.11.04"]
[EventType "swiss"]
[EventCountry "ESP"]
[SourceTitle "playchess.com"]
[Source "ChessBase"]
[SourceQuality "1"]
[TimeControl "40/5400+30:1800+30"]

1. c4 {[%emt 0:00:00]} b6 {[%emt 0:00:00]} 2. d4 {[%emt 0:00:00]} Bb7 {[%emt 0:00:00]} 3. d5 {[%emt 0:00:09]} e6 {[%emt 0:03:21]} 4. e4 {[%emt 0:03:07]} exd5 {[%emt 0:01:14]} 5. exd5 {[%emt 0:00:30] A40: Unusual replies to 1 d4} Nf6 {[%emt 0:01:26]} 6. Nf3 {[%emt 0:00:07]} Be7 {[%emt 0:04:22]} 7. Nc3 {[%emt 0:00:39]} O-O {[%emt 0:02:57]} 8. Be2 $146 {[%emt 0:00:02]} ({Predecessor:} 8. Bd3 c6 9. O-O cxd5 10. cxd5 Bb4 11. Ne4 h6 12. a3 Be7 {1-0 (51) Ungureanu,E (2385)-Sahovic,D (2460) Timisoara 1977}) 8... Re8 {[%emt 0:03:02]} 9. O-O {[%emt 0:00:30]} h6 {[%emt 0:01:31]} 10. Bf4 {[%emt 0:03:10]} d6 {[%emt 0:02:47]} 11. Nd4 {[%emt 0:00:37]} Bf8 {[%emt 0:01:27]} 12. Bd3 {[%emt 0:00:30]} Nbd7 {[%emt 0:03:01]} 13. Bc2 {[%emt 0:01:00]} Ne5 {[%emt 0:10:36]} 14. Ba4 {[%emt 0:00:06]} Nfd7 {[%emt 0:01:27]} 15. b3 {[%emt 0:00:31]} Qc8 {[%emt 0:14:08]} 16. Bg3 {[%emt 0:01:48]} Ng6 {[%emt 0:06:40]} 17. h4 {[%emt 0:00:27]} Rd8 {[%emt 0:01:48]} 18. h5 {[%emt 0:00:50]} Ne7 {[%emt 0:00:33]} 19. Bh4 {[%emt 0:04:51]} Nc5 {[%emt 0:02:31]} 20. Bc6 {[%emt 0:00:12]} Bxc6 {[%emt 0:00:40]} 21. dxc6 {[%emt 0:00:02]} ({Much less strong is} 21. Nxc6 $6 Re8 $14) 21... Re8 {[%emt 0:02:11]} 22. Re1 {[%emt 0:02:10]} Ne6 23. Bxe7 {[%emt 0:02:14]} Bxe7 {[%emt 0:04:41]} 24. Nd5 {[%emt 0:00:05]} Bf8 {[%emt 0:03:16]} 25. Qg4 {[%emt 0:04:26]} Kh8 {[%emt 0:04:59]} 26. b4 {[%emt 0:00:21]} a6 {[%emt 0:02:43]} 27. Re3 {[%emt 0:07:03]} Nxd4 {[%emt 0:03:44]} 28. Qxd4 {[%emt 0:00:02]} Rxe3 {[%emt 0:01:10]} 29. Qxe3 {[%emt 0:00:03]} Qe8 {[%emt 0:03:46]} 30. Qxe8 {[%emt 0:01:15]} Rxe8 {[%emt 0:00:02]} 31. b5 {[%emt 0:00:19]} ({Less strong is} 31. Nxc7 Rc8 $16) 31... axb5 {[%emt 0:01:28]} 32. cxb5 {[%emt 0:00:02]} Rc8 {[%emt 0:03:15]} 33. Re1 {[%emt 0:03:43]} Kg8 {[%emt 0:01:35]} (33... Kh7 $142 34. Kh2 g6) 34. Re4 {[%emt 0:00:07]} f6 {[%emt 0:02:09]} 35. Re7 {[%emt 0:01:16]} Ra8 {[%emt 0:01:39]} 36. Rxc7 {[%emt 0:00:02]} Rxa2 {[%emt 0:00:22]} 37. Rc8 {[%emt 0:01:02]} Kf7 {[%emt 0:01:51]} 38. c7 {[%emt 0:00:06]} Rc2 {[%emt 0:00:15]} 39. Ra8 {[%emt 0:00:16]} Rc1+ {[%emt 0:00:38]} 40. Kh2 {[%emt 0:00:00]} Ke6 {[%emt 0:00:00]} 41. c8=Q+ {[%emt 0:00:15]} Rxc8 {[%emt 0:00:36]} 42. Rxc8 {[%emt 0:00:02]} Kxd5 {[%emt 0:00:07]} 43. Rxf8 {[%emt 0:00:02]} Ke4 $18 {[%emt 0:00:27]} 44. Rb8 {[%emt 0:00:08]} d5 {[%emt 0:00:06]} 45. Rxb6 {[%emt 0:00:04]} d4 {[%emt 0:00:04]} 46. Rd6 {[%emt 0:00:06] Kd5} 1-0

[Event "FIDE WCCC U12 2018"]
[Site "Santiago de Compostela"]
[Date "2018.11.15"]
[Round "11"]
[White "Maurizzi, Marc Andria"]
[Black "Nahornyi, Ihor"]
[Result "1-0"]
[ECO "B40"]
[WhiteElo "2103"]
[BlackElo "1900"]
[Annotator "ChessBase"]
[PlyCount "37"]
[EventDate "2018.11.04"]
[EventType "swiss"]
[EventCountry "ESP"]
[SourceTitle "playchess.com"]
[Source "ChessBase"]
[SourceQuality "1"]
[TimeControl "40/5400+30:1800+30"]

1. e4 c5 2. Nf3 e6 3. Be2 a6 4. O-O d6 5. d4 cxd4 6. Nxd4 Nf6 7. Nc3 Be7 8. Be3 O-O 9. f4 Nbd7 10. Bf3 Qc7 11. Qe2 Re8 12. g4 Nf8 13. g5 N6d7 14. Bg2 Rb8 15. f5 b5 16. Qh5 e5 17. Nd5 Qb7 18. f6 Bd8 19. Nf5 1-0

[Event "FIDE WCCC U12 2018"]
[Site "Santiago de Compostela"]
[Date "2018.11.15"]
[Round "11"]
[White "Yu, Jason"]
[Black "Tobak, Mikhail"]
[Result "1/2-1/2"]
[ECO "B08"]
[WhiteElo "2097"]
[BlackElo "1936"]
[Annotator "NA"]
[PlyCount "96"]
[EventDate "2018.11.04"]
[EventType "swiss"]
[EventCountry "ESP"]
[SourceTitle "playchess.com"]
[Source "ChessBase"]
[SourceQuality "1"]
[TimeControl "40/5400+30:1800+30"]

1. e4 {[%emt 0:00:00]} d6 {[%emt 0:00:00]} 2. d4 {[%emt 0:00:00]} Nf6 {[%emt 0:00:00]} 3. Nc3 {[%emt 0:00:00]} g6 {[%emt 0:00:00]} 4. Nf3 {[%emt 0:00:00]} Bg7 {[%emt 0:00:00]} 5. Bc4 {[%emt 0:00:00]} O-O {[%emt 0:00:00]} 6. O-O {[%emt 0:00:00]} Nxe4 7. Nxe4 {[%emt 0:00:08]} d5 {[%emt 0:00:20]} 8. Bd3 {[%emt 0:00:04]} dxe4 {[%emt 0:00:05]} 9. Bxe4 {[%emt 0:00:49]} Nd7 {[%emt 0:00:00]} 10. c3 {[%emt 0:00:30]} Nf6 {[%emt 0:00:15] LiveBook: 3 Games B08: Pirc Defence: Classical System} (10... c5 11. Bc2 cxd4 12. Nxd4 Ne5 13. Qe2 Bg4 14. Qe4 Qc8 15. Bb3 e6 16. Bf4 Bf5 17. Qe3 Nc4 18. Qe2 Na5 19. Nxf5 gxf5 {½-½ (43) Vitiugov,N (2722)-Dubov,D (2683) St Petersburg 2017}) 11. Bd3 {[%emt 0:00:30]} b6 {[%emt 0:00:30]} 12. Re1 {[%emt 0:00:30]} Bb7 {[%emt 0:00:30]} 13. Qe2 {[%emt 0:06:11]} e6 {[%emt 0:09:32]} 14. Bd2 $146 {[%emt 0:23:20]} Qc8 {[%emt 0:02:28]} 15. Rad1 {[%emt 0:07:20]} c5 {[%emt 0:02:39]} 16. Be3 {[%emt 0:00:30]} Nd5 {[%emt 0:00:30]} 17. dxc5 {[%emt 0:00:30]} Nxe3 {[%emt 0:00:30]} 18. Qxe3 {[%emt 0:00:30]} Qxc5 {[%emt 0:00:30]} 19. Qxc5 {[%emt 0:00:30]} bxc5 {[%emt 0:00:30]} 20. Be4 {[%emt 0:00:30]} Rab8 {[%emt 0:00:30]} 21. Rd2 {[%emt 0:00:30]} Ba6 {[%emt 0:00:30]} 22. Red1 {[%emt 0:00:30]} Rb6 {[%emt 0:00:30]} 23. Ne1 {[%emt 0:00:30]} Bh6 {[%emt 0:00:30]} 24. Rc2 {[%emt 0:00:30] [#]} Rfb8 $1 {[%emt 0:00:30]} 25. Rb1 {[%emt 0:00:30]} c4 {[%emt 0:00:30]} 26. g3 {[%emt 0:00:30]} Bf8 {[%emt 0:00:30]} 27. Rd2 {[%emt 0:00:30]} Bb7 {[%emt 0:00:30]} 28. Bxb7 {[%emt 0:00:30]} R6xb7 {[%emt 0:00:30]} 29. Nf3 {[%emt 0:00:30]} Ba3 {[%emt 0:00:30]} 30. Ne5 {[%emt 0:00:30]} Rxb2 {[%emt 0:00:30]} 31. Rbxb2 {[%emt 0:00:30]} Bxb2 {[%emt 0:00:30]} 32. Rc2 {[%emt 0:00:30]} Ba3 {[%emt 0:00:30]} 33. Nxc4 {[%emt 0:00:30]} Bc5 {[%emt 0:00:30]} 34. Kg2 {[%emt 0:00:30]} Rc8 {[%emt 0:00:30]} 35. Nb2 {[%emt 0:00:30]} Bd4 {[%emt 0:00:30]} 36. Nd1 {[%emt 0:00:30]} e5 {[%emt 0:00:30]} 37. Re2 {[%emt 0:00:30]} Bb6 {[%emt 0:00:30]} 38. Rxe5 {[%emt 0:00:30]} Rd8 {[%emt 0:00:30]} 39. Ne3 {[%emt 0:00:30]} Rd2 {[%emt 0:13:09]} 40. a4 {[%emt 0:26:28]} Ra2 41. Kf3 Rxa4 {[%emt 0:30:52]} 42. Nd5 {[%emt 0:32:49]} Ra3 {[%emt 0:01:34]} 43. Re8+ {[%emt 0:01:37]} Kg7 {[%emt 0:00:04]} 44. Rc8 {[%emt 0:00:36]} Ra2 {[%emt 0:01:06]} 45. Nxb6 {[%emt 0:00:45]} axb6 {[%emt 0:00:09]} 46. Ke3 {[%emt 0:03:21]} Rc2 {[%emt 0:00:41]} 47. h4 {[%emt 0:00:33]} b5 {[%emt 0:00:07]} 48. Rc5 $11 {[%emt 0:00:14]} Rb2 {[%emt 0:00:12]} 1/2-1/2